[Event "Betsys MČR v online bleskovém šachu 2021"]
[Site "Chess.com"]
[Date "2021.04.17"]
[Round "2"]
[White "KJ327NR"]
[Black "sachovybukowski"]
[Result "1-0"]
[WhiteElo "2367"]
[BlackElo "1996"]
[TimeControl "180+1"]
[EndTime "9:16:33 PDT"]
[Termination "Uživatel KJ327NR zvítězil matem"]

1. e4 {[%clk 0:03:00.9]} 1... c5 {[%clk 0:02:07.1]} 2. Nf3 {[%clk 0:02:59.3]}
2... d6 {[%clk 0:02:05.8]} 3. Bb5+ {[%clk 0:02:58.1]} 3... Nd7 {[%clk
0:02:04.9]} 4. O-O {[%clk 0:02:57.1]} 4... a6 {[%clk 0:02:04.9]} 5. Bd3 {[%clk
0:02:56.5]} 5... g6 {[%clk 0:02:03.7]} 6. c3 {[%clk 0:02:55.5]} 6... Bg7 {[%clk
0:02:03.9]} 7. Re1 {[%clk 0:02:54.4]} 7... Nh6 {[%clk 0:02:02.2]} 8. Bc2 {[%clk
0:02:45.7]} 8... O-O {[%clk 0:01:56.3]} 9. d4 {[%clk 0:02:45.4]} 9... b6 {[%clk
0:01:49.5]} 10. Bf4 {[%clk 0:02:33.4]} 10... Ng4 {[%clk 0:01:38.9]} 11. h3
{[%clk 0:02:30.1]} 11... Ngf6 {[%clk 0:01:38.8]} 12. Nbd2 {[%clk 0:02:27.9]}
12... Bb7 {[%clk 0:01:37.7]} 13. Qe2 {[%clk 0:02:12.2]} 13... Re8 {[%clk
0:01:35.9]} 14. Rad1 {[%clk 0:02:01.8]} 14... Rc8 {[%clk 0:01:34.7]} 15. d5
{[%clk 0:02:00.6]} 15... b5 {[%clk 0:01:23.7]} 16. Bd3 {[%clk 0:01:48.4]} 16...
Nb6 {[%clk 0:01:20.5]} 17. c4 {[%clk 0:01:45.6]} 17... b4 {[%clk 0:01:19.3]} 18.
Nb3 {[%clk 0:01:36.1]} 18... Nbd7 {[%clk 0:00:29.9]} 19. e5 {[%clk 0:01:34.9]}
19... Nh5 {[%clk 0:00:22]} 20. Bh2 {[%clk 0:01:34.4]} 20... Bh6 {[%clk 0:00:14]}
21. e6 {[%clk 0:01:23.5]} 21... Ndf6 {[%clk 0:00:06.8]} 22. exf7+ {[%clk
0:01:22.9]} 22... Kxf7 {[%clk 0:00:06.3]} 23. Qe6+ {[%clk 0:01:22.7]} 23... Kf8
{[%clk 0:00:06.4]} 24. Nh4 {[%clk 0:00:59.9]} 24... Nf4 {[%clk 0:00:05.9]} 25.
Bxf4 {[%clk 0:00:59.3]} 25... Bxf4 {[%clk 0:00:06.1]} 26. Bxg6 {[%clk
0:00:55.7]} 26... Be5 {[%clk 0:00:03]} 27. Qf7# {[%clk 0:00:54.8]} 1-0

[Event "Betsys MČR v online bleskovém šachu 2021"]
[Site "Chess.com"]
[Date "2021.04.17"]
[Round "2"]
[White "RunningPawnz88"]
[Black "DrDANDog"]
[Result "0-1"]
[WhiteElo "1341"]
[BlackElo "1789"]
[TimeControl "180+1"]
[EndTime "9:16:33 PDT"]
[Termination "Uživatel DrDANDog zvítězil po vzdání soupeře"]

1. d4 {[%clk 0:03:00.9]} 1... Nf6 {[%clk 0:03:00.1]} 2. c4 {[%clk 0:03:00.4]}
2... g6 {[%clk 0:03:00.2]} 3. Nc3 {[%clk 0:03:00.6]} 3... Bg7 {[%clk 0:03:00.1]}
4. g3 {[%clk 0:03:00.1]} 4... O-O {[%clk 0:03:00.1]} 5. Bg2 {[%clk 0:03:00.2]}
5... d6 {[%clk 0:03:00.7]} 6. e3 {[%clk 0:03:00.4]} 6... Nbd7 {[%clk 0:02:57.7]}
7. Nge2 {[%clk 0:03:00.8]} 7... e5 {[%clk 0:02:58.1]} 8. O-O {[%clk 0:03:00.5]}
8... exd4 {[%clk 0:02:57.7]} 9. exd4 {[%clk 0:03:00]} 9... Re8 {[%clk
0:02:55.4]} 10. Bf4 {[%clk 0:02:58.3]} 10... Nh5 {[%clk 0:02:54.6]} 11. Bd2
{[%clk 0:02:54.5]} 11... Nb6 {[%clk 0:02:54.6]} 12. c5 {[%clk 0:02:52.7]} 12...
dxc5 {[%clk 0:02:53]} 13. dxc5 {[%clk 0:02:52.9]} 13... Nc4 {[%clk 0:02:51.8]}
14. Bf4 {[%clk 0:02:38.3]} 14... Nxf4 {[%clk 0:02:48.4]} 15. Nxf4 {[%clk
0:02:32.3]} 15... Nxb2 {[%clk 0:02:48.6]} 16. Qb3 {[%clk 0:02:25.6]} 16... Qd2
{[%clk 0:02:25.3]} 17. Ne4 {[%clk 0:02:13.5]} 17... Qd4 {[%clk 0:02:07]} 18. Ng5
{[%clk 0:02:04.6]} 18... Rf8 {[%clk 0:01:51.6]} 19. Bd5 {[%clk 0:01:41.8]} 19...
Qf6 {[%clk 0:01:42.4]} 20. Bxf7+ {[%clk 0:01:37.2]} 20... Rxf7 {[%clk
0:01:43.3]} 21. Nge6 {[%clk 0:01:33.1]} 21... Bxe6 {[%clk 0:01:38]} 22. Nxe6
{[%clk 0:01:31.2]} 22... Bh8 {[%clk 0:01:25]} 23. Qxb7 {[%clk 0:01:20.6]} 23...
Re8 {[%clk 0:01:14.8]} 24. Nxc7 {[%clk 0:01:16.9]} 24... Ree7 {[%clk 0:01:13.4]}
25. Qc8+ {[%clk 0:01:04.7]} 25... Rf8 {[%clk 0:01:12.2]} 26. Qh3 {[%clk
0:01:00.5]} 26... Rxc7 {[%clk 0:01:09]} 27. Rab1 {[%clk 0:00:57.1]} 27... Nd3
{[%clk 0:01:06.6]} 28. Rbd1 {[%clk 0:00:49.8]} 28... Nxc5 {[%clk 0:01:01.8]} 29.
Qg2 {[%clk 0:00:39.4]} 29... Rcf7 {[%clk 0:01:00.7]} 30. Rd2 {[%clk 0:00:29.9]}
30... Qf3 {[%clk 0:00:58.1]} 31. Qxf3 {[%clk 0:00:28.5]} 31... Rxf3 {[%clk
0:00:59]} 32. Rd5 {[%clk 0:00:26.6]} 32... Ne4 {[%clk 0:00:58.1]} 33. Rd7 {[%clk
0:00:25.5]} 33... Nxf2 {[%clk 0:00:57.6]} 0-1

[Event "Betsys MČR v online bleskovém šachu 2021"]
[Site "Chess.com"]
[Date "2021.04.17"]
[Round "2"]
[White "Simago"]
[Black "VitaRasik"]
[Result "0-1"]
[WhiteElo "2094"]
[BlackElo "2617"]
[TimeControl "180+1"]
[EndTime "9:16:35 PDT"]
[Termination "Uživatel VitaRasik zvítězil po vzdání soupeře"]

1. e4 {[%clk 0:03:00.9]} 1... d6 {[%clk 0:02:59.5]} 2. Nc3 {[%clk 0:03:00.3]}
2... g6 {[%clk 0:02:56.9]} 3. f4 {[%clk 0:03:00.1]} 3... Bg7 {[%clk 0:02:56.6]}
4. Nf3 {[%clk 0:03:00.3]} 4... Nf6 {[%clk 0:02:56.7]} 5. d3 {[%clk 0:03:00.3]}
5... O-O {[%clk 0:02:56.5]} 6. Be2 {[%clk 0:03:00.4]} 6... Nc6 {[%clk
0:02:51.5]} 7. O-O {[%clk 0:03:00]} 7... e5 {[%clk 0:02:50.3]} 8. h3 {[%clk
0:02:58.5]} 8... a6 {[%clk 0:02:44.1]} 9. Be3 {[%clk 0:02:58.1]} 9... b5 {[%clk
0:02:43.6]} 10. a3 {[%clk 0:02:58.1]} 10... Rb8 {[%clk 0:02:40.3]} 11. Qd2
{[%clk 0:02:57.7]} 11... Nh5 {[%clk 0:02:34.3]} 12. fxe5 {[%clk 0:02:53.1]}
12... dxe5 {[%clk 0:02:33.4]} 13. Nd5 {[%clk 0:02:49.6]} 13... Be6 {[%clk
0:02:23.4]} 14. c4 {[%clk 0:02:48.9]} 14... Ng3 {[%clk 0:02:18.5]} 15. Rf2
{[%clk 0:02:41.8]} 15... Nxe2+ {[%clk 0:02:15.6]} 16. Rxe2 {[%clk 0:02:32.5]}
16... Nd4 {[%clk 0:02:07.8]} 17. Nxd4 {[%clk 0:02:06.9]} 17... exd4 {[%clk
0:02:07.7]} 18. Bf4 {[%clk 0:01:50.6]} 18... Rb7 {[%clk 0:02:06.7]} 19. Nb4
{[%clk 0:01:44.2]} 19... bxc4 {[%clk 0:01:55.8]} 20. Nxa6 {[%clk 0:01:22.4]}
20... c3 {[%clk 0:01:54.3]} 21. Qc1 {[%clk 0:01:14.1]} 21... Qe7 {[%clk
0:01:40.4]} 22. Nb4 {[%clk 0:01:05.7]} 22... c5 {[%clk 0:01:33.2]} 23. Na2
{[%clk 0:00:46.4]} 23... c4 {[%clk 0:01:19.8]} 24. bxc3 {[%clk 0:00:32.5]} 24...
cxd3 {[%clk 0:01:19.6]} 25. Rd2 {[%clk 0:00:31.9]} 25... Bxa2 {[%clk 0:01:11.3]}
26. Raxa2 {[%clk 0:00:28.1]} 26... Qxe4 {[%clk 0:01:10.9]} 27. Bd6 {[%clk
0:00:15.1]} 27... dxc3 {[%clk 0:01:05.4]} 28. Bxf8 {[%clk 0:00:11.2]} 28... cxd2
{[%clk 0:01:01.3]} 29. Qxd2 {[%clk 0:00:11]} 29... Bxf8 {[%clk 0:01:00.7]} 30.
Ra1 {[%clk 0:00:08]} 30... Qd4+ {[%clk 0:00:59.3]} 0-1

[Event "Betsys MČR v online bleskovém šachu 2021"]
[Site "Chess.com"]
[Date "2021.04.17"]
[Round "2"]
[White "Svisthorsky"]
[Black "petr812"]
[Result "0-1"]
[WhiteElo "1473"]
[BlackElo "2106"]
[TimeControl "180+1"]
[EndTime "9:16:35 PDT"]
[Termination "Uživatel petr812 zvítězil po vzdání soupeře"]

1. d4 {[%clk 0:03:00.9]} 1... Nf6 {[%clk 0:02:57]} 2. Bg5 {[%clk 0:02:59.8]}
2... g6 {[%clk 0:02:55.8]} 3. Bxf6 {[%clk 0:02:59.4]} 3... exf6 {[%clk
0:02:56.7]} 4. Nc3 {[%clk 0:02:58.5]} 4... Bg7 {[%clk 0:02:56.8]} 5. Nf3 {[%clk
0:02:58.7]} 5... O-O {[%clk 0:02:56.6]} 6. e4 {[%clk 0:02:58]} 6... d6 {[%clk
0:02:56.7]} 7. Bd3 {[%clk 0:02:57.2]} 7... Bg4 {[%clk 0:02:56.1]} 8. h3 {[%clk
0:02:55.7]} 8... Bxf3 {[%clk 0:02:54.8]} 9. Qxf3 {[%clk 0:02:55.2]} 9... Nc6
{[%clk 0:02:55.2]} 10. d5 {[%clk 0:02:35.2]} 10... Ne5 {[%clk 0:02:50.5]} 11.
Qe2 {[%clk 0:02:30.5]} 11... Re8 {[%clk 0:02:49.6]} 12. O-O-O {[%clk 0:02:25.5]}
12... a6 {[%clk 0:02:47.2]} 13. f4 {[%clk 0:02:25.4]} 13... Nd7 {[%clk
0:02:42.5]} 14. g4 {[%clk 0:02:22]} 14... b5 {[%clk 0:02:39.7]} 15. f5 {[%clk
0:02:21.7]} 15... Ne5 {[%clk 0:02:31.2]} 16. h4 {[%clk 0:02:14.1]} 16... b4
{[%clk 0:02:29]} 17. Nb1 {[%clk 0:02:05.6]} 17... a5 {[%clk 0:02:27]} 18. g5
{[%clk 0:02:01.3]} 18... a4 {[%clk 0:02:18.6]} 19. h5 {[%clk 0:01:53.2]} 19...
fxg5 {[%clk 0:02:12.8]} 20. hxg6 {[%clk 0:01:48.5]} 20... Qf6 {[%clk 0:02:08.9]}
21. Qh2 {[%clk 0:01:34.8]} 21... h6 {[%clk 0:01:57.6]} 22. Qe2 {[%clk
0:01:12.2]} 22... Nxd3+ {[%clk 0:01:54.9]} 23. Rxd3 {[%clk 0:01:09.2]} 23...
Qxb2+ {[%clk 0:01:54.1]} 24. Kd1 {[%clk 0:01:07.7]} 24... Qxb1+ {[%clk
0:01:52.8]} 25. Kd2 {[%clk 0:01:07.8]} 25... Qxh1 {[%clk 0:01:52]} 26. Rf3
{[%clk 0:00:47.2]} 26... Bc3+ {[%clk 0:01:49.7]} 27. Kd3 {[%clk 0:00:43.1]}
27... f6 {[%clk 0:01:46.5]} 28. Qe3 {[%clk 0:00:38]} 28... Qd1+ {[%clk
0:01:42.7]} 29. Kc4 {[%clk 0:00:36.7]} 29... Qd4+ {[%clk 0:01:41.7]} 30. Qxd4
{[%clk 0:00:34.6]} 30... Bxd4 {[%clk 0:01:42.6]} 31. Rh3 {[%clk 0:00:33.8]}
31... Re5 {[%clk 0:01:43]} 32. Rxh6 {[%clk 0:00:31.5]} 32... Rxe4 {[%clk
0:01:41.6]} 33. Kxb4 {[%clk 0:00:27.4]} 33... g4 {[%clk 0:01:30.8]} 34. Kb5
{[%clk 0:00:20.3]} 34... Re5 {[%clk 0:01:22.8]} 35. Kc6 {[%clk 0:00:19.4]} 35...
Rxf5 {[%clk 0:01:18.9]} 36. Kxc7 {[%clk 0:00:19.4]} 36... Rxd5 {[%clk 0:01:15]}
0-1

[Event "Betsys MČR v online bleskovém šachu 2021"]
[Site "Chess.com"]
[Date "2021.04.17"]
[Round "2"]
[White "czechfant94"]
[Black "kubajss"]
[Result "1-0"]
[WhiteElo "1604"]
[BlackElo "878"]
[TimeControl "180+1"]
[EndTime "9:16:37 PDT"]
[Termination "Uživatel czechfant94 zvítězil na čas"]

1. e4 {[%clk 0:03:00.9]} 1... e5 {[%clk 0:02:59.1]} 2. Nf3 {[%clk 0:03:00]} 2...
Nc6 {[%clk 0:02:59.3]} 3. Bc4 {[%clk 0:02:59.8]} 3... Nf6 {[%clk 0:02:50]} 4. d3
{[%clk 0:02:58.6]} 4... Bc5 {[%clk 0:02:49.5]} 5. c3 {[%clk 0:02:57]} 5... O-O
{[%clk 0:02:42]} 6. Nbd2 {[%clk 0:02:54.3]} 6... d6 {[%clk 0:02:40.8]} 7. Nf1
{[%clk 0:02:48.7]} 7... Bg4 {[%clk 0:02:29.8]} 8. Ng3 {[%clk 0:02:47.9]} 8...
Re8 {[%clk 0:02:20]} 9. a4 {[%clk 0:02:43.8]} 9... d5 {[%clk 0:02:07.6]} 10.
exd5 {[%clk 0:02:38.5]} 10... Nxd5 {[%clk 0:02:06.8]} 11. Bxd5 {[%clk
0:02:37.4]} 11... Qxd5 {[%clk 0:02:06.5]} 12. b4 {[%clk 0:02:30.8]} 12... Bd6
{[%clk 0:01:55]} 13. O-O {[%clk 0:02:26.5]} 13... Bxf3 {[%clk 0:01:26]} 14. Qxf3
{[%clk 0:02:27.4]} 14... Qxf3 {[%clk 0:01:23.5]} 15. gxf3 {[%clk 0:02:28.3]}
15... Re7 {[%clk 0:01:22.2]} 16. Ne4 {[%clk 0:02:25.8]} 16... Rae8 {[%clk
0:01:15]} 17. Be3 {[%clk 0:02:15.8]} 17... f6 {[%clk 0:00:57.5]} 18. Rfe1 {[%clk
0:02:03.8]} 18... Nb8 {[%clk 0:00:47.4]} 19. Bxa7 {[%clk 0:01:58.5]} 19... Nd7
{[%clk 0:00:46.9]} 20. Be3 {[%clk 0:01:55.1]} 20... b6 {[%clk 0:00:39.7]} 21.
Nxd6 {[%clk 0:01:53.2]} 21... cxd6 {[%clk 0:00:38.8]} 22. f4 {[%clk 0:01:53.6]}
22... h6 {[%clk 0:00:30.8]} 23. Kf1 {[%clk 0:01:48.4]} 23... g5 {[%clk
0:00:25.3]} 24. fxg5 {[%clk 0:01:44.7]} 24... hxg5 {[%clk 0:00:25]} 25. Ke2
{[%clk 0:01:38.8]} 25... Rh7 {[%clk 0:00:24.3]} 26. Rh1 {[%clk 0:01:38.2]} 26...
d5 {[%clk 0:00:17.8]} 27. a5 {[%clk 0:01:37.3]} 27... b5 {[%clk 0:00:16.3]} 28.
a6 {[%clk 0:01:36.7]} 28... Ra8 {[%clk 0:00:16.1]} 29. a7 {[%clk 0:01:36.6]}
29... Nf8 {[%clk 0:00:06.7]} 30. Bc5 {[%clk 0:01:29.9]} 30... Ng6 {[%clk
0:00:06.4]} 31. Ra6 {[%clk 0:01:22.9]} 31... Nf4+ {[%clk 0:00:05.6]} 32. Ke3
{[%clk 0:01:20.4]} 32... Ng2+ {[%clk 0:00:04.6]} 33. Kf3 {[%clk 0:01:18.9]}
33... Nh4+ {[%clk 0:00:02.8]} 34. Kg4 {[%clk 0:01:14]} 34... Ng6 {[%clk
0:00:02.1]} 35. Rxf6 {[%clk 0:01:12.7]} 1-0

[Event "Betsys MČR v online bleskovém šachu 2021"]
[Site "Chess.com"]
[Date "2021.04.17"]
[Round "2"]
[White "Maty122"]
[Black "prosinec"]
[Result "0-1"]
[WhiteElo "1166"]
[BlackElo "1725"]
[TimeControl "180+1"]
[EndTime "9:16:39 PDT"]
[Termination "Uživatel prosinec zvítězil na čas"]

1. e4 {[%clk 0:03:00.5]} 1... d6 {[%clk 0:02:58.5]} 2. Nf3 {[%clk 0:02:59.9]}
2... Bg4 {[%clk 0:02:56.1]} 3. d4 {[%clk 0:02:58.4]} 3... Nf6 {[%clk 0:02:48.4]}
4. Nc3 {[%clk 0:02:58]} 4... c6 {[%clk 0:02:36]} 5. h3 {[%clk 0:02:58.3]} 5...
Bxf3 {[%clk 0:02:35.6]} 6. Qxf3 {[%clk 0:02:57.5]} 6... e6 {[%clk 0:02:33.1]} 7.
Bg5 {[%clk 0:02:52.4]} 7... Be7 {[%clk 0:02:32.2]} 8. Bd3 {[%clk 0:02:39.1]}
8... h6 {[%clk 0:02:21.8]} 9. Bh4 {[%clk 0:02:32.9]} 9... d5 {[%clk 0:01:54.2]}
10. e5 {[%clk 0:02:10.5]} 10... Nfd7 {[%clk 0:01:54.4]} 11. Bxe7 {[%clk
0:02:02.3]} 11... Qxe7 {[%clk 0:01:53.6]} 12. Qg4 {[%clk 0:01:37.2]} 12... O-O
{[%clk 0:01:47.9]} 13. f4 {[%clk 0:01:25.8]} 13... a6 {[%clk 0:01:29.2]} 14. f5
{[%clk 0:01:24.1]} 14... exf5 {[%clk 0:01:20.9]} 15. Qxf5 {[%clk 0:01:19.7]}
15... g6 {[%clk 0:01:18.4]} 16. Qf4 {[%clk 0:01:07]} 16... Kg7 {[%clk
0:01:15.3]} 17. h4 {[%clk 0:01:01.8]} 17... h5 {[%clk 0:01:13.4]} 18. g4 {[%clk
0:00:39.7]} 18... Rh8 {[%clk 0:00:50.6]} 19. O-O-O {[%clk 0:00:24.9]} 19... b5
{[%clk 0:00:46.1]} 20. Rdg1 {[%clk 0:00:04.8]} 20... b4 {[%clk 0:00:37.5]} 0-1

[Event "Betsys MČR v online bleskovém šachu 2021"]
[Site "Chess.com"]
[Date "2021.04.17"]
[Round "2"]
[White "Sfreedom01"]
[Black "Rognort"]
[Result "0-1"]
[WhiteElo "1333"]
[BlackElo "1788"]
[TimeControl "180+1"]
[EndTime "9:16:44 PDT"]
[Termination "Uživatel Rognort zvítězil matem"]

1. e4 {[%clk 0:03:00.9]} 1... d5 {[%clk 0:02:46.6]} 2. exd5 {[%clk 0:02:59.5]}
2... Qxd5 {[%clk 0:02:47.5]} 3. Nc3 {[%clk 0:02:59.7]} 3... Qa5 {[%clk
0:02:45.7]} 4. Nf3 {[%clk 0:02:59.9]} 4... c6 {[%clk 0:02:46.2]} 5. d3 {[%clk
0:03:00.5]} 5... Bf5 {[%clk 0:02:46.7]} 6. Bd2 {[%clk 0:03:00.5]} 6... e6 {[%clk
0:02:47]} 7. Be2 {[%clk 0:02:58.4]} 7... Qc7 {[%clk 0:02:46.2]} 8. O-O {[%clk
0:02:57.5]} 8... Bd6 {[%clk 0:02:46.8]} 9. g3 {[%clk 0:02:57.4]} 9... Nf6 {[%clk
0:02:46.2]} 10. Kg2 {[%clk 0:02:53.4]} 10... Nbd7 {[%clk 0:02:45.9]} 11. Be3
{[%clk 0:02:50]} 11... h5 {[%clk 0:02:44.2]} 12. Bg5 {[%clk 0:02:49.1]} 12...
O-O-O {[%clk 0:02:37.9]} 13. Bxf6 {[%clk 0:02:48.1]} 13... Nxf6 {[%clk
0:02:38.8]} 14. Rh1 {[%clk 0:02:48.2]} 14... Rdg8 {[%clk 0:02:34.6]} 15. Qd2
{[%clk 0:02:48.3]} 15... h4 {[%clk 0:01:55.3]} 16. Nxh4 {[%clk 0:02:36.6]} 16...
Rxh4 {[%clk 0:01:55.3]} 17. gxh4 {[%clk 0:02:36.5]} 17... Nd5 {[%clk 0:01:36.9]}
18. Nxd5 {[%clk 0:02:35.4]} 18... exd5 {[%clk 0:01:37.8]} 19. Qg5 {[%clk
0:02:21.9]} 19... Qd7 {[%clk 0:01:29.3]} 20. h3 {[%clk 0:02:14.3]} 20... f6
{[%clk 0:01:26.9]} 21. Qe3 {[%clk 0:02:09.7]} 21... Qc7 {[%clk 0:01:21.4]} 22.
Bg4 {[%clk 0:02:05]} 22... g6 {[%clk 0:01:19]} 23. Qxa7 {[%clk 0:01:53.7]} 23...
Kd7 {[%clk 0:01:08.7]} 24. Qe3 {[%clk 0:01:47.9]} 24... Bf4 {[%clk 0:01:06.3]}
25. Qf3 {[%clk 0:01:42.6]} 25... Qd6 {[%clk 0:00:51.2]} 26. Rae1 {[%clk
0:01:39.8]} 26... Rg7 {[%clk 0:00:49.2]} 27. Kf1 {[%clk 0:01:35.4]} 27... Bh6
{[%clk 0:00:44.1]} 28. Bxf5+ {[%clk 0:01:31]} 28... gxf5 {[%clk 0:00:44]} 29.
Qxf5+ {[%clk 0:01:31]} 29... Kc7 {[%clk 0:00:40.7]} 30. Qe6 {[%clk 0:01:22.1]}
30... Qf4 {[%clk 0:00:29.5]} 31. Qe3 {[%clk 0:01:13.2]} 31... Qxh4 {[%clk
0:00:24.6]} 32. Qf3 {[%clk 0:01:00.1]} 32... Qg5 {[%clk 0:00:24.6]} 33. Rh2
{[%clk 0:00:53.1]} 33... Qg1+ {[%clk 0:00:20.4]} 34. Ke2 {[%clk 0:00:50.6]}
34... Re7+ {[%clk 0:00:20.9]} 35. Kd1 {[%clk 0:00:47.3]} 35... Qxe1# {[%clk
0:00:21.1]} 0-1

[Event "Betsys MČR v online bleskovém šachu 2021"]
[Site "Chess.com"]
[Date "2021.04.17"]
[Round "2"]
[White "doktorovak"]
[Black "misacz"]
[Result "1-0"]
[WhiteElo "1665"]
[BlackElo "1078"]
[TimeControl "180+1"]
[EndTime "9:16:49 PDT"]
[Termination "Uživatel doktorovak zvítězil po vzdání soupeře"]

1. e4 {[%clk 0:03:00.9]} 1... e6 {[%clk 0:02:58.6]} 2. Nf3 {[%clk 0:03:00.9]}
2... d5 {[%clk 0:02:57.2]} 3. exd5 {[%clk 0:03:01.1]} 3... exd5 {[%clk
0:02:56.6]} 4. d4 {[%clk 0:02:59.7]} 4... Nf6 {[%clk 0:02:55.3]} 5. Bd3 {[%clk
0:02:59.3]} 5... Be6 {[%clk 0:02:51.2]} 6. h3 {[%clk 0:02:58.7]} 6... Nc6 {[%clk
0:02:48.8]} 7. c3 {[%clk 0:02:57.4]} 7... Bd6 {[%clk 0:02:47.8]} 8. O-O {[%clk
0:02:56.2]} 8... O-O {[%clk 0:02:47.2]} 9. Bg5 {[%clk 0:02:54.2]} 9... Be7
{[%clk 0:02:43.9]} 10. Nbd2 {[%clk 0:02:51.5]} 10... Qd7 {[%clk 0:02:43.1]} 11.
Ne5 {[%clk 0:02:36]} 11... Nxe5 {[%clk 0:02:33.7]} 12. dxe5 {[%clk 0:02:35.5]}
12... Ne8 {[%clk 0:02:14.8]} 13. Bxe7 {[%clk 0:02:30.7]} 13... Qxe7 {[%clk
0:02:15.7]} 14. Qh5 {[%clk 0:02:30.4]} 14... g6 {[%clk 0:02:11.8]} 15. Qf3
{[%clk 0:02:27.1]} 15... Ng7 {[%clk 0:02:07.4]} 16. Nb3 {[%clk 0:02:21.9]} 16...
Nf5 {[%clk 0:01:57.9]} 17. Rfe1 {[%clk 0:02:18.4]} 17... Qg5 {[%clk 0:01:41.1]}
18. Bxf5 {[%clk 0:02:12.4]} 18... Bxf5 {[%clk 0:01:39.9]} 19. Nd4 {[%clk
0:02:12.2]} 19... Be4 {[%clk 0:01:37]} 20. Qg3 {[%clk 0:02:09.3]} 20... Qxg3
{[%clk 0:01:36.2]} 21. fxg3 {[%clk 0:02:09.6]} 21... f5 {[%clk 0:01:32.9]} 22.
exf6 {[%clk 0:02:06.5]} 22... Rxf6 {[%clk 0:01:31.7]} 23. Rf1 {[%clk 0:01:56.8]}
23... Rxf1+ {[%clk 0:01:28.2]} 24. Rxf1 {[%clk 0:01:55.5]} 24... Rf8 {[%clk
0:01:28.2]} 25. Re1 {[%clk 0:01:54.7]} 25... c6 {[%clk 0:01:25.3]} 26. Ne6
{[%clk 0:01:53.5]} 26... Re8 {[%clk 0:01:07.9]} 27. Ng5 {[%clk 0:01:53]} 27...
Kg7 {[%clk 0:01:03.6]} 28. Kf2 {[%clk 0:01:52.2]} 28... Re5 {[%clk 0:00:54.3]}
29. Nxe4 {[%clk 0:01:50.4]} 29... dxe4 {[%clk 0:00:52.6]} 30. Ke3 {[%clk
0:01:50]} 30... Ra5 {[%clk 0:00:44.3]} 31. a3 {[%clk 0:01:48.9]} 31... Rb5
{[%clk 0:00:44.5]} 32. b4 {[%clk 0:01:47.2]} 32... Re5 {[%clk 0:00:43]} 33. Kf4
{[%clk 0:01:43.4]} 33... Rf5+ {[%clk 0:00:36.9]} 34. Kxe4 {[%clk 0:01:41.8]}
34... Rf2 {[%clk 0:00:36.7]} 35. Ke5 {[%clk 0:01:31.4]} 35... Rxg2 {[%clk
0:00:32.9]} 36. Re3 {[%clk 0:01:30.7]} 36... Ra2 {[%clk 0:00:32.2]} 37. Kd6
{[%clk 0:01:30]} 37... Rxa3 {[%clk 0:00:32]} 38. Kc7 {[%clk 0:01:29.7]} 38... b6
{[%clk 0:00:25.7]} 39. Kxc6 {[%clk 0:01:29.4]} 39... Ra1 {[%clk 0:00:25.5]} 40.
Kb5 {[%clk 0:01:24.3]} 40... Rf1 {[%clk 0:00:25.8]} 41. c4 {[%clk 0:01:21.8]}
41... Rf5+ {[%clk 0:00:25.7]} 42. c5 {[%clk 0:01:22]} 42... bxc5 {[%clk
0:00:25.4]} 43. bxc5 {[%clk 0:01:21.9]} 43... a6+ {[%clk 0:00:26.1]} 44. Kb6
{[%clk 0:01:22.2]} 44... Rxc5 {[%clk 0:00:27]} 45. Kxc5 {[%clk 0:01:21.9]} 45...
a5 {[%clk 0:00:26.2]} 46. Kb5 {[%clk 0:01:21.8]} 46... a4 {[%clk 0:00:27.1]} 47.
Kxa4 {[%clk 0:01:22]} 47... Kf6 {[%clk 0:00:26.9]} 48. Re4 {[%clk 0:01:17.4]}
48... Kg5 {[%clk 0:00:27.8]} 49. Kb5 {[%clk 0:01:16.6]} 1-0

[Event "Betsys MČR v online bleskovém šachu 2021"]
[Site "Chess.com"]
[Date "2021.04.17"]
[Round "2"]
[White "Nevimjakhrat"]
[Black "Lipican"]
[Result "0-1"]
[WhiteElo "1495"]
[BlackElo "2083"]
[TimeControl "180+1"]
[EndTime "9:16:50 PDT"]
[Termination "Uživatel Lipican zvítězil po vzdání soupeře"]

1. c4 {[%clk 0:03:00.9]} 1... c6 {[%clk 0:02:59.2]} 2. e4 {[%clk 0:02:53.7]}
2... d5 {[%clk 0:02:59.4]} 3. cxd5 {[%clk 0:02:53.3]} 3... cxd5 {[%clk
0:02:59.2]} 4. exd5 {[%clk 0:02:53.7]} 4... Nf6 {[%clk 0:02:57.7]} 5. Nc3 {[%clk
0:02:54.6]} 5... g6 {[%clk 0:02:55.1]} 6. g3 {[%clk 0:02:55.5]} 6... Bg7 {[%clk
0:02:54.6]} 7. Bg2 {[%clk 0:02:53.2]} 7... O-O {[%clk 0:02:54.2]} 8. d4 {[%clk
0:02:48.3]} 8... Nbd7 {[%clk 0:02:53.3]} 9. Nge2 {[%clk 0:02:47.5]} 9... Nb6
{[%clk 0:02:53.2]} 10. O-O {[%clk 0:02:46.6]} 10... Nbxd5 {[%clk 0:02:52]} 11.
Be3 {[%clk 0:02:38.6]} 11... Nxe3 {[%clk 0:02:46.6]} 12. fxe3 {[%clk 0:02:39.5]}
12... Rb8 {[%clk 0:02:39.5]} 13. Nf4 {[%clk 0:02:32.3]} 13... b5 {[%clk
0:02:36.2]} 14. b4 {[%clk 0:02:28]} 14... Bb7 {[%clk 0:02:27.5]} 15. a3 {[%clk
0:02:19.7]} 15... Bxg2 {[%clk 0:02:26.6]} 16. Kxg2 {[%clk 0:02:20.6]} 16... Qb6
{[%clk 0:02:21.4]} 17. Ncd5 {[%clk 0:02:15.2]} 17... Nxd5 {[%clk 0:02:18.2]} 18.
Nxd5 {[%clk 0:02:16.1]} 18... Qb7 {[%clk 0:02:17.4]} 19. Qf3 {[%clk 0:02:13.8]}
19... e6 {[%clk 0:02:04.8]} 20. Nf6+ {[%clk 0:02:11.1]} 20... Bxf6 {[%clk
0:02:03.9]} 21. Qxb7 {[%clk 0:02:06.6]} 21... Rxb7 {[%clk 0:02:03.6]} 22. Rxf6
{[%clk 0:02:07.5]} 22... Rc7 {[%clk 0:02:01.7]} 23. Rf2 {[%clk 0:01:58]} 23...
f5 {[%clk 0:01:57.4]} 24. Raf1 {[%clk 0:01:54.9]} 24... Rfc8 {[%clk 0:01:55.1]}
25. h3 {[%clk 0:01:47.4]} 25... Rc3 {[%clk 0:01:52.2]} 26. g4 {[%clk 0:01:45.2]}
26... Rxe3 {[%clk 0:01:50]} 27. gxf5 {[%clk 0:01:43.1]} 27... exf5 {[%clk
0:01:48.3]} 28. Rd2 {[%clk 0:01:42.3]} 28... Rd8 {[%clk 0:01:43.8]} 29. d5
{[%clk 0:01:42.3]} 29... Rd6 {[%clk 0:01:43]} 30. Rfd1 {[%clk 0:01:37.2]} 30...
Kg7 {[%clk 0:01:40.7]} 31. Ra1 {[%clk 0:01:27.1]} 31... Re5 {[%clk 0:01:37.5]}
32. Rad1 {[%clk 0:01:16.1]} 32... Kf6 {[%clk 0:01:35.9]} 33. Kf3 {[%clk
0:01:14.7]} 33... g5 {[%clk 0:01:35.4]} 34. Kg3 {[%clk 0:01:07.3]} 34... f4+
{[%clk 0:01:32.9]} 35. Kg4 {[%clk 0:01:06.1]} 35... Re3 {[%clk 0:01:32.2]} 36.
h4 {[%clk 0:01:05.4]} 36... Rg3+ {[%clk 0:01:23.5]} 37. Kh5 {[%clk 0:01:02.5]}
37... g4 {[%clk 0:01:22.6]} 38. Rd4 {[%clk 0:00:56.3]} 38... Ke5 {[%clk
0:01:17.2]} 39. Kg5 {[%clk 0:00:47]} 39... h6+ {[%clk 0:01:10.9]} 40. Kh5 {[%clk
0:00:43.7]} 40... Rg2 {[%clk 0:01:06.6]} 41. Rf1 {[%clk 0:00:21]} 41... Kxd4
{[%clk 0:01:02.1]} 0-1